[Event "December 19 Early 2023"]
[Site "https://www.chess.com"]
[Date "2023.12.19"]
[Round "8"]
[White "Hajiyev, Kanan"]
[Black "Sevostianov, Vladimir"]
[Result "0-1"]
[Board "92"]
[TimeControl "180+1"]
[WhiteFideId "13404148"]
[BlackFideId "4144163"]
[WhiteElo "2102"]
[BlackElo "2150"]
[WhiteTeam "AZE"]
[BlackTeam "RUS"]
[WhiteClock "0:00:00"]
[BlackClock "0:00:53"]

1. d4 {[%clk 0:03:00]}  Nf6 {[%clk 0:02:59]} 2. Nf3 {[%clk 0:03:01]}  g6 {[%clk 0:02:59]} 3. c4 {[%clk 0:03:02]}  Bg7 {[%clk 0:02:59]} 4. Nc3 {[%clk 0:03:03]}  d6 {[%clk 0:02:58]} 5. g3 {[%clk 0:03:04]}  O-O {[%clk 0:02:58]} 6. Bg2 {[%clk 0:03:05]}  Nc6 {[%clk 0:02:58]} 7. O-O {[%clk 0:03:06]}  a6 {[%clk 0:02:56]} 8. b3 {[%clk 0:03:04]}  e5 {[%clk 0:02:55]} 9. dxe5 {[%clk 0:03:04]}  Nxe5 {[%clk 0:02:53]} 10. Bb2 {[%clk 0:03:03]}  Nxf3+ {[%clk 0:02:47]} 11. exf3 {[%clk 0:03:04]}  Bd7 {[%clk 0:02:36]} 12. Qd2 {[%clk 0:03:02]}  Bc6 {[%clk 0:02:35]} 13. Rad1 {[%clk 0:03:02]}  Qd7 {[%clk 0:02:31]} 14. Rfe1 {[%clk 0:02:59]}  Rfe8 {[%clk 0:02:30]} 15. f4 {[%clk 0:02:23]}  Bxg2 {[%clk 0:02:27]} 16. Kxg2 {[%clk 0:02:24]}  Rxe1 {[%clk 0:02:25]} 17. Rxe1 {[%clk 0:02:24]}  Re8 {[%clk 0:02:24]} 18. Rxe8+ {[%clk 0:02:16]}  Qxe8 {[%clk 0:02:24]} 19. Qe2 {[%clk 0:02:08]}  Qxe2 {[%clk 0:02:18]} 20. Nxe2 {[%clk 0:02:09]}  Nd7 {[%clk 0:02:15]} 21. Bxg7 {[%clk 0:02:02]}  Kxg7 {[%clk 0:02:14]} 22. Kf3 {[%clk 0:02:03]}  f5 {[%clk 0:02:10]} 23. Ke3 {[%clk 0:02:00]}  Kf6 {[%clk 0:02:08]} 24. f3 {[%clk 0:02:00]}  Nc5 {[%clk 0:02:04]} 25. Kd4 {[%clk 0:02:00]}  Ne6+ {[%clk 0:01:59]} 26. Ke3 {[%clk 0:01:48]}  Ke7 {[%clk 0:01:58]} 27. g4 {[%clk 0:01:46]}  c6 {[%clk 0:01:55]} 28. h4 {[%clk 0:01:46]}  h5 {[%clk 0:01:52]} 29. gxf5 {[%clk 0:01:18]}  gxf5 {[%clk 0:01:51]} 30. Ng3 {[%clk 0:01:19]}  Ng7 {[%clk 0:01:51]} 31. Kd4 {[%clk 0:01:20]}  Ke6 {[%clk 0:01:51]} 32. b4 {[%clk 0:01:19]}  b6 {[%clk 0:01:48]} 33. a4 {[%clk 0:01:18]}  c5+ {[%clk 0:01:43]} 34. bxc5 {[%clk 0:01:11]}  bxc5+ {[%clk 0:01:42]} 35. Kc3 {[%clk 0:01:11]}  d5 {[%clk 0:01:41]} 36. cxd5+ {[%clk 0:01:06]}  Kxd5 {[%clk 0:01:41]} 37. Nf1 {[%clk 0:01:07]}  Ne6 {[%clk 0:01:32]} 38. Ne3+ {[%clk 0:01:07]}  Kc6 {[%clk 0:01:30]} 39. Nxf5 {[%clk 0:01:08]}  Nxf4 {[%clk 0:01:30]} 40. Ng3 {[%clk 0:01:01]}  Kd5 {[%clk 0:01:25]} 41. Kd2 {[%clk 0:00:44]}  Kc4 {[%clk 0:01:20]} 42. Ne4 {[%clk 0:00:35]}  Kb4 {[%clk 0:01:16]} 43. a5 {[%clk 0:00:28]}  c4 {[%clk 0:01:14]} 44. Kc2 {[%clk 0:00:17]}  Ng2 {[%clk 0:01:10]} 45. Nf6 {[%clk 0:00:16]}  Nxh4 {[%clk 0:01:09]} 46. f4 {[%clk 0:00:15]}  Nf5 {[%clk 0:01:04]} 47. Nxh5 {[%clk 0:00:15]}  Nd4+ {[%clk 0:01:02]} 48. Kd1 {[%clk 0:00:14]}  c3 {[%clk 0:01:01]} 49. Ng3 {[%clk 0:00:15]}  Kb3 {[%clk 0:01:01]} 50. Kc1 {[%clk 0:00:13]}  c2 {[%clk 0:00:57]} 51. f5 {[%clk 0:00:13]}  Kc3 {[%clk 0:00:56]} 52. Ne4+ {[%clk 0:00:14]}  Kd3 {[%clk 0:00:56]} 53. Nc5+ {[%clk 0:00:14]}  Kc3 {[%clk 0:00:56]} 54. Ne4+ {[%clk 0:00:14]}  Kd3 {[%clk 0:00:55]} 55. Nc5+ {[%clk 0:00:14]}  Kc4 {[%clk 0:00:54]} 56. Nxa6 {[%clk 0:00:00]}  Kc3 {[%clk 0:00:53]} 0-1

[Event "December 19 Early 2023"]
[Site "https://www.chess.com"]
[Date "2023.12.19"]
[Round "8"]
[White "Yuan, Qingyu"]
[Black "Ljukin, Sergei"]
[Result "0-1"]
[Board "94"]
[TimeControl "180+1"]
[WhiteFideId "8609772"]
[BlackFideId "14102200"]
[WhiteElo "2359"]
[BlackElo "2319"]
[WhiteTeam "CHN"]
[BlackTeam "UKR"]
[WhiteClock "0:00:00"]
[BlackClock "0:00:10"]

1. Nf3 {[%clk 0:03:00]}  d5 {[%clk 0:02:57]} 2. e3 {[%clk 0:03:01]}  Nf6 {[%clk 0:02:56]} 3. c4 {[%clk 0:03:01]}  c6 {[%clk 0:02:54]} 4. b3 {[%clk 0:03:01]}  e6 {[%clk 0:02:53]} 5. Bb2 {[%clk 0:03:01]}  Nbd7 {[%clk 0:02:53]} 6. Be2 {[%clk 0:03:00]}  Bd6 {[%clk 0:02:53]} 7. O-O {[%clk 0:02:59]}  e5 {[%clk 0:02:46]} 8. d4 {[%clk 0:02:59]}  e4 {[%clk 0:02:46]} 9. Ne5 {[%clk 0:02:59]}  Qe7 {[%clk 0:02:41]} 10. cxd5 {[%clk 0:02:36]}  cxd5 {[%clk 0:02:39]} 11. Nc3 {[%clk 0:02:25]}  Nxe5 {[%clk 0:02:13]} 12. dxe5 {[%clk 0:02:25]}  Bxe5 {[%clk 0:02:13]} 13. Rb1 {[%clk 0:02:10]}  Qd6 {[%clk 0:01:53]} 14. Nb5 {[%clk 0:01:56]}  Qb8 {[%clk 0:01:52]} 15. Ba3 {[%clk 0:01:36]}  a6 {[%clk 0:01:50]} 16. Nd4 {[%clk 0:01:28]}  Bd6 {[%clk 0:01:49]} 17. Bxd6 {[%clk 0:01:23]}  Qxd6 {[%clk 0:01:49]} 18. h3 {[%clk 0:01:17]}  O-O {[%clk 0:01:46]} 19. Qd2 {[%clk 0:01:17]}  Bd7 {[%clk 0:01:38]} 20. b4 {[%clk 0:01:14]}  b5 {[%clk 0:01:10]} 21. Rfc1 {[%clk 0:01:11]}  Rfc8 {[%clk 0:01:09]} 22. Nb3 {[%clk 0:01:11]}  h6 {[%clk 0:01:01]} 23. Nc5 {[%clk 0:01:10]}  Bf5 {[%clk 0:00:58]} 24. Qd4 {[%clk 0:01:08]}  Nd7 {[%clk 0:00:55]} 25. Rc3 {[%clk 0:00:59]}  Nxc5 {[%clk 0:00:55]} 26. bxc5 {[%clk 0:01:00]}  Qc6 {[%clk 0:00:55]} 27. a4 {[%clk 0:00:49]}  bxa4 {[%clk 0:00:49]} 28. Rb6 {[%clk 0:00:49]}  Qd7 {[%clk 0:00:43]} 29. c6 {[%clk 0:00:49]}  Qc7 {[%clk 0:00:28]} 30. Bxa6 {[%clk 0:00:39]}  Rd8 {[%clk 0:00:21]} 31. Bb7 {[%clk 0:00:18]}  Rab8 {[%clk 0:00:19]} 32. Ra6 {[%clk 0:00:16]}  Bc8 {[%clk 0:00:16]} 33. Ra7 {[%clk 0:00:10]}  Bxb7 {[%clk 0:00:17]} 34. cxb7 {[%clk 0:00:11]}  Qd7 {[%clk 0:00:16]} 35. Ra3 {[%clk 0:00:07]}  Rxb7 {[%clk 0:00:15]} 36. R3xa4 {[%clk 0:00:04]}  Rxa7 {[%clk 0:00:13]} 37. Rxa7 {[%clk 0:00:04]}  Qe6 {[%clk 0:00:14]} 38. Rb7 {[%clk 0:00:03]}  Kh7 {[%clk 0:00:14]} 39. Kh2 {[%clk 0:00:03]}  Rc8 {[%clk 0:00:13]} 40. g3 {[%clk 0:00:03]}  Rc2 {[%clk 0:00:12]} 41. Kg2 {[%clk 0:00:03]}  Qf5 {[%clk 0:00:12]} 42. Kh1 {[%clk 0:00:01]}  Qxf2 {[%clk 0:00:11]} 43. Rxf7 {[%clk 0:00:00]}  Rc1+ {[%clk 0:00:10]} 0-1

[Event "December 19 Early 2023"]
[Site "https://www.chess.com"]
[Date "2023.12.19"]
[Round "8"]
[White "Lacasa Diaz, Josep Anton"]
[Black "Hua, Lefong"]
[Result "0-1"]
[Board "96"]
[TimeControl "180+1"]
[WhiteFideId "2203375"]
[BlackFideId "2602253"]
[WhiteElo "2338"]
[BlackElo "2680"]
[WhiteTeam "ESP"]
[BlackTeam "CAN"]
[WhiteClock "0:00:06"]
[BlackClock "0:00:49"]

1. e4 {[%clk 0:03:00]}  c5 {[%clk 0:02:59]} 2. Nf3 {[%clk 0:03:00]}  g6 {[%clk 0:02:59]} 3. d4 {[%clk 0:02:57]}  cxd4 {[%clk 0:03:00]} 4. Qxd4 {[%clk 0:02:55]}  Nf6 {[%clk 0:03:00]} 5. Nc3 {[%clk 0:02:55]}  Nc6 {[%clk 0:03:00]} 6. Qa4 {[%clk 0:02:55]}  d6 {[%clk 0:03:00]} 7. e5 {[%clk 0:02:54]}  dxe5 {[%clk 0:03:01]} 8. Nxe5 {[%clk 0:02:53]}  Bg7 {[%clk 0:03:00]} 9. Bb5 {[%clk 0:02:52]}  O-O {[%clk 0:03:00]} 10. Nxc6 {[%clk 0:02:53]}  bxc6 {[%clk 0:03:01]} 11. Bxc6 {[%clk 0:02:53]}  Bd7 {[%clk 0:03:01]} 12. Bxd7 {[%clk 0:02:50]}  Qxd7 {[%clk 0:02:58]} 13. Qxd7 {[%clk 0:02:48]}  Nxd7 {[%clk 0:02:59]} 14. Bd2 {[%clk 0:02:48]}  Rfc8 {[%clk 0:02:54]} 15. O-O-O {[%clk 0:02:48]}  Nb6 {[%clk 0:02:46]} 16. Rhe1 {[%clk 0:02:43]}  e6 {[%clk 0:02:43]} 17. Re4 {[%clk 0:02:35]}  Nc4 {[%clk 0:02:38]} 18. Na4 {[%clk 0:02:20]}  Rab8 {[%clk 0:02:30]} 19. b3 {[%clk 0:02:04]}  Nxd2 {[%clk 0:02:20]} 20. Rxd2 {[%clk 0:02:03]}  Bh6 {[%clk 0:02:10]} 21. f4 {[%clk 0:02:02]}  e5 {[%clk 0:02:11]} 22. g3 {[%clk 0:01:47]}  exf4 {[%clk 0:02:11]} 23. gxf4 {[%clk 0:01:47]}  Re8 {[%clk 0:02:02]} 24. Rde2 {[%clk 0:01:41]}  Bxf4+ {[%clk 0:02:00]} 25. Kb1 {[%clk 0:01:37]}  Rxe4 {[%clk 0:02:00]} 26. Rxe4 {[%clk 0:01:37]}  Bxh2 {[%clk 0:02:01]} 27. c4 {[%clk 0:01:35]}  h5 {[%clk 0:01:58]} 28. Nc5 {[%clk 0:01:27]}  Kg7 {[%clk 0:01:51]} 29. Kc2 {[%clk 0:01:24]}  Bg3 {[%clk 0:01:49]} 30. Re7 {[%clk 0:01:12]}  Bd6 {[%clk 0:01:41]} 31. Rb7 {[%clk 0:01:02]}  h4 {[%clk 0:01:23]} 32. Rxb8 {[%clk 0:00:51]}  Bxb8 {[%clk 0:01:23]} 33. Ne4 {[%clk 0:00:46]}  h3 {[%clk 0:01:21]} 34. Nf2 {[%clk 0:00:45]}  h2 {[%clk 0:01:20]} 35. Kd3 {[%clk 0:00:46]}  f5 {[%clk 0:01:17]} 36. Ke2 {[%clk 0:00:45]}  g5 {[%clk 0:01:16]} 37. Kf3 {[%clk 0:00:44]}  g4+ {[%clk 0:01:14]} 38. Kg2 {[%clk 0:00:45]}  Kf6 {[%clk 0:01:13]} 39. b4 {[%clk 0:00:39]}  Kg5 {[%clk 0:01:11]} 40. c5 {[%clk 0:00:37]}  g3 {[%clk 0:01:04]} 41. Nh1 {[%clk 0:00:34]}  Kg4 {[%clk 0:01:03]} 42. b5 {[%clk 0:00:22]}  f4 {[%clk 0:01:01]} 43. Nxg3 {[%clk 0:00:22]}  fxg3 {[%clk 0:01:00]} 44. b6 {[%clk 0:00:17]}  axb6 {[%clk 0:00:59]} 45. cxb6 {[%clk 0:00:17]}  h1=Q+ {[%clk 0:00:56]} 46. Kxh1 {[%clk 0:00:17]}  Kh3 {[%clk 0:00:56]} 47. a4 {[%clk 0:00:14]}  g2+ {[%clk 0:00:52]} 48. Kg1 {[%clk 0:00:14]}  Kg3 {[%clk 0:00:50]} 49. a5 {[%clk 0:00:06]}  Bf4 {[%clk 0:00:49]} 0-1

[Event "December 19 Early 2023"]
[Site "https://www.chess.com"]
[Date "2023.12.19"]
[Round "8"]
[White "Sahib Singh"]
[Black "Uritsky, Yonathan"]
[Result "1/2-1/2"]
[Board "97"]
[TimeControl "180+1"]
[WhiteFideId "25618342"]
[BlackFideId "2825651"]
[WhiteElo "2130"]
[BlackElo "2168"]
[WhiteTeam "IND"]
[BlackTeam "ISR"]
[WhiteClock "0:00:18"]
[BlackClock "0:00:08"]

1. e4 {[%clk 0:03:00]}  c6 {[%clk 0:03:00]} 2. d4 {[%clk 0:03:00]}  d5 {[%clk 0:03:00]} 3. e5 {[%clk 0:03:01]}  Bf5 {[%clk 0:03:00]} 4. h4 {[%clk 0:03:01]}  h5 {[%clk 0:02:59]} 5. Bd3 {[%clk 0:02:57]}  Bxd3 {[%clk 0:02:59]} 6. Qxd3 {[%clk 0:02:58]}  Qa5+ {[%clk 0:02:59]} 7. Nd2 {[%clk 0:02:59]}  e6 {[%clk 0:02:59]} 8. c3 {[%clk 0:02:58]}  Nh6 {[%clk 0:02:58]} 9. a4 {[%clk 0:02:54]}  Qa6 {[%clk 0:02:58]} 10. Qg3 {[%clk 0:02:47]}  Nf5 {[%clk 0:02:57]} 11. Qf4 {[%clk 0:02:48]}  Be7 {[%clk 0:02:52]} 12. Ngf3 {[%clk 0:02:47]}  Qd3 {[%clk 0:02:43]} 13. Rh3 {[%clk 0:02:35]}  Qa6 {[%clk 0:02:17]} 14. g4 {[%clk 0:02:26]}  hxg4 {[%clk 0:02:18]} 15. Qxg4 {[%clk 0:02:26]}  Nd7 {[%clk 0:02:15]} 16. h5 {[%clk 0:02:25]}  O-O-O {[%clk 0:02:09]} 17. b4 {[%clk 0:02:20]}  Qd3 {[%clk 0:02:02]} 18. Ng5 {[%clk 0:02:11]}  Qc2 {[%clk 0:01:45]} 19. Nxf7 {[%clk 0:02:11]}  Nh6 {[%clk 0:01:46]} 20. Qxe6 {[%clk 0:02:02]}  Nxf7 {[%clk 0:01:36]} 21. Qxf7 {[%clk 0:01:56]}  Bg5 {[%clk 0:01:27]} 22. e6 {[%clk 0:01:31]}  Rhe8 {[%clk 0:01:09]} 23. Re3 {[%clk 0:01:07]}  Nf6 {[%clk 0:01:03]} 24. e7 {[%clk 0:01:05]}  Bxe3 {[%clk 0:00:46]} 25. exd8=Q+ {[%clk 0:01:05]}  Kxd8 {[%clk 0:00:47]} 26. fxe3 {[%clk 0:00:57]}  Qxc3 {[%clk 0:00:47]} 27. Rb1 {[%clk 0:00:42]}  Qxe3+ {[%clk 0:00:47]} 28. Kd1 {[%clk 0:00:42]}  Re7 {[%clk 0:00:18]} 29. Qf8+ {[%clk 0:00:39]}  Kc7 {[%clk 0:00:19]} 30. b5 {[%clk 0:00:35]}  Ng4 {[%clk 0:00:16]} 31. bxc6 {[%clk 0:00:16]}  Nf2+ {[%clk 0:00:16]} 32. Qxf2 {[%clk 0:00:17]}  Qxf2 {[%clk 0:00:15]} 33. Rxb7+ {[%clk 0:00:17]}  Kd8 {[%clk 0:00:10]} 34. Rb8+ {[%clk 0:00:17]}  Kc7 {[%clk 0:00:11]} 35. Rb7+ {[%clk 0:00:18]}  Kd8 {[%clk 0:00:08]} 36. Rb8+ {[%clk 0:00:18]}  Kc7 {[%clk 0:00:08]} 37. Rb7+ {[%clk 0:00:18]} 1/2-1/2

[Event "December 19 Early 2023"]
[Site "https://www.chess.com"]
[Date "2023.12.19"]
[Round "8"]
[White "Tifferet, Shakked"]
[Black "Wanyama, Harold"]
[Result "1-0"]
[Board "104"]
[TimeControl "180+1"]
[WhiteFideId "2811529"]
[BlackFideId "10000380"]
[WhiteElo "2142"]
[BlackElo "2228"]
[WhiteTeam "ISR"]
[BlackTeam "UGA"]
[WhiteClock "0:00:07"]
[BlackClock "0:00:44"]

1. e4 {[%clk 0:02:55]}  c5 {[%clk 0:02:59]} 2. Nf3 {[%clk 0:02:54]}  e6 {[%clk 0:02:59]} 3. b3 {[%clk 0:02:54]}  Nc6 {[%clk 0:02:57]} 4. Bb2 {[%clk 0:02:54]}  Nf6 {[%clk 0:02:56]} 5. e5 {[%clk 0:02:52]}  Nd5 {[%clk 0:02:56]} 6. Bd3 {[%clk 0:02:46]}  Be7 {[%clk 0:02:55]} 7. O-O {[%clk 0:02:45]}  O-O {[%clk 0:02:55]} 8. Re1 {[%clk 0:02:44]}  f5 {[%clk 0:02:54]} 9. exf6 {[%clk 0:02:43]}  Bxf6 {[%clk 0:02:53]} 10. Nc3 {[%clk 0:02:34]}  Nf4 {[%clk 0:02:52]} 11. Bf1 {[%clk 0:02:32]}  d5 {[%clk 0:02:51]} 12. Na4 {[%clk 0:02:31]}  b6 {[%clk 0:02:45]} 13. d4 {[%clk 0:02:22]}  Qd6 {[%clk 0:02:24]} 14. g3 {[%clk 0:02:17]}  Ng6 {[%clk 0:02:20]} 15. dxc5 {[%clk 0:02:07]}  bxc5 {[%clk 0:02:20]} 16. Bxf6 {[%clk 0:02:07]}  Rxf6 {[%clk 0:02:18]} 17. Bg2 {[%clk 0:02:08]}  Bd7 {[%clk 0:02:17]} 18. Nc3 {[%clk 0:02:02]}  Raf8 {[%clk 0:02:15]} 19. Ne4 {[%clk 0:02:02]}  Qe7 {[%clk 0:02:10]} 20. Nxf6+ {[%clk 0:02:01]}  Qxf6 {[%clk 0:02:11]} 21. Qd2 {[%clk 0:01:58]}  h6 {[%clk 0:02:07]} 22. Rad1 {[%clk 0:01:54]}  d4 {[%clk 0:02:01]} 23. c3 {[%clk 0:01:47]}  e5 {[%clk 0:02:01]} 24. cxd4 {[%clk 0:01:46]}  exd4 {[%clk 0:02:02]} 25. h4 {[%clk 0:01:41]}  Bg4 {[%clk 0:02:00]} 26. Nh2 {[%clk 0:00:41]}  Bxd1 {[%clk 0:01:59]} 27. Rxd1 {[%clk 0:00:42]}  Kh8 {[%clk 0:01:53]} 28. Rc1 {[%clk 0:00:40]}  Qd6 {[%clk 0:01:43]} 29. Be4 {[%clk 0:00:28]}  Nge5 {[%clk 0:01:40]} 30. f4 {[%clk 0:00:25]}  Nb4 {[%clk 0:01:35]} 31. fxe5 {[%clk 0:00:21]}  Qxe5 {[%clk 0:01:35]} 32. Qg2 {[%clk 0:00:21]}  d3 {[%clk 0:01:32]} 33. Rd1 {[%clk 0:00:20]}  Qd4+ {[%clk 0:01:31]} 34. Kh1 {[%clk 0:00:20]}  Rf2 {[%clk 0:01:30]} 35. Nf3 {[%clk 0:00:18]}  Qe3 {[%clk 0:01:22]} 36. Re1 {[%clk 0:00:18]}  Qxe1+ {[%clk 0:01:11]} 37. Nxe1 {[%clk 0:00:16]}  Rxg2 {[%clk 0:01:08]} 38. Nxg2 {[%clk 0:00:15]}  d2 {[%clk 0:01:09]} 39. Ne3 {[%clk 0:00:14]}  Nxa2 {[%clk 0:01:05]} 40. Kg2 {[%clk 0:00:13]}  Nc1 {[%clk 0:01:03]} 41. Bc2 {[%clk 0:00:09]}  Ne2 {[%clk 0:01:03]} 42. Kf2 {[%clk 0:00:08]}  Nd4 {[%clk 0:01:03]} 43. Bd1 {[%clk 0:00:08]}  a5 {[%clk 0:00:58]} 44. Nc4 {[%clk 0:00:09]}  Nb5 {[%clk 0:00:55]} 45. Nxd2 {[%clk 0:00:07]}  Nc3 {[%clk 0:00:55]} 46. Bc2 {[%clk 0:00:07]}  g5 {[%clk 0:00:53]} 47. hxg5 {[%clk 0:00:07]}  hxg5 {[%clk 0:00:54]} 48. Ne4 {[%clk 0:00:07]}  Nb5 {[%clk 0:00:52]} 49. Nxc5 {[%clk 0:00:06]}  Nd4 {[%clk 0:00:53]} 50. Bd1 {[%clk 0:00:06]}  Kg7 {[%clk 0:00:52]} 51. Nb7 {[%clk 0:00:06]}  Nc6 {[%clk 0:00:51]} 52. Nd6 {[%clk 0:00:06]}  Kf6 {[%clk 0:00:50]} 53. Nc4 {[%clk 0:00:07]}  Ke6 {[%clk 0:00:49]} 54. Ke3 {[%clk 0:00:07]}  Kd5 {[%clk 0:00:48]} 55. Bf3+ {[%clk 0:00:07]}  Kc5 {[%clk 0:00:49]} 56. Bxc6 {[%clk 0:00:08]}  a4 {[%clk 0:00:44]} 57. Bxa4 {[%clk 0:00:07]} 1-0

[Event "December 19 Early 2023"]
[Site "https://www.chess.com"]
[Date "2023.12.19"]
[Round "8"]
[White "Tay, Junior"]
[Black "Khamdamova, Afruza"]
[Result "0-1"]
[Board "105"]
[TimeControl "180+1"]
[WhiteFideId "5800439"]
[BlackFideId "14210444"]
[WhiteElo "2216"]
[BlackElo "2295"]
[WhiteTeam "SGP"]
[BlackTeam "UZB"]
[WhiteClock "0:00:10"]
[BlackClock "0:00:16"]

1. e4 {[%clk 0:03:00]}  e5 {[%clk 0:03:00]} 2. Nc3 {[%clk 0:02:59]}  Nf6 {[%clk 0:03:00]} 3. f4 {[%clk 0:02:59]}  d5 {[%clk 0:02:58]} 4. fxe5 {[%clk 0:02:59]}  Nxe4 {[%clk 0:02:58]} 5. d3 {[%clk 0:03:00]}  Nxc3 {[%clk 0:02:58]} 6. bxc3 {[%clk 0:03:00]}  Bc5 {[%clk 0:02:54]} 7. d4 {[%clk 0:02:59]}  Bb6 {[%clk 0:02:54]} 8. Nf3 {[%clk 0:02:59]}  O-O {[%clk 0:02:53]} 9. Bd3 {[%clk 0:03:00]}  c5 {[%clk 0:02:51]} 10. O-O {[%clk 0:02:59]}  h6 {[%clk 0:02:51]} 11. dxc5 {[%clk 0:02:53]}  Bxc5+ {[%clk 0:02:51]} 12. Kh1 {[%clk 0:02:54]}  Nc6 {[%clk 0:02:50]} 13. Qe1 {[%clk 0:02:54]}  Bg4 {[%clk 0:02:44]} 14. Qg3 {[%clk 0:02:53]}  Qd7 {[%clk 0:01:59]} 15. h3 {[%clk 0:02:52]}  Bxf3 {[%clk 0:02:00]} 16. Bxh6 {[%clk 0:02:52]}  Bg4 {[%clk 0:01:59]} 17. Bf5 {[%clk 0:02:42]}  Qe7 {[%clk 0:01:56]} 18. Qxg4 {[%clk 0:02:40]}  Qxe5 {[%clk 0:01:53]} 19. Bd3 {[%clk 0:02:12]}  Bd6 {[%clk 0:01:21]} 20. Bf4 {[%clk 0:02:09]}  Qf6 {[%clk 0:01:21]} 21. Bh2 {[%clk 0:01:51]}  Qh6 {[%clk 0:01:13]} 22. Bxd6 {[%clk 0:01:21]}  Qxd6 {[%clk 0:01:13]} 23. Rae1 {[%clk 0:00:58]}  Ne5 {[%clk 0:00:47]} 24. Qf4 {[%clk 0:00:51]}  Rae8 {[%clk 0:00:46]} 25. Bb5 {[%clk 0:00:47]}  Re6 {[%clk 0:00:45]} 26. Re3 {[%clk 0:00:24]}  a6 {[%clk 0:00:40]} 27. Be2 {[%clk 0:00:21]}  Rfe8 {[%clk 0:00:30]} 28. Rg3 {[%clk 0:00:21]}  Ng6 {[%clk 0:00:29]} 29. Qxd6 {[%clk 0:00:21]}  Rxd6 {[%clk 0:00:29]} 30. Bh5 {[%clk 0:00:19]}  Re4 {[%clk 0:00:22]} 31. Rgf3 {[%clk 0:00:16]}  Re7 {[%clk 0:00:21]} 32. Kh2 {[%clk 0:00:15]}  Ne5 {[%clk 0:00:21]} 33. Re3 {[%clk 0:00:11]}  f6 {[%clk 0:00:21]} 34. Be2 {[%clk 0:00:12]}  Rc7 {[%clk 0:00:21]} 35. Rd1 {[%clk 0:00:09]}  Rc5 {[%clk 0:00:21]} 36. Rd4 {[%clk 0:00:08]}  Rdc6 {[%clk 0:00:20]} 37. c4 {[%clk 0:00:05]}  dxc4 {[%clk 0:00:20]} 38. Bh5 {[%clk 0:00:05]}  Rc8 {[%clk 0:00:18]} 39. Rd6 {[%clk 0:00:04]}  R5c6 {[%clk 0:00:16]} 40. Rd4 {[%clk 0:00:03]}  b5 {[%clk 0:00:17]} 41. Bf3 {[%clk 0:00:03]}  R6c7 {[%clk 0:00:17]} 42. Bd5+ {[%clk 0:00:04]}  Kf8 {[%clk 0:00:17]} 43. Be6 {[%clk 0:00:05]}  Re8 {[%clk 0:00:17]} 44. Bf5 {[%clk 0:00:06]}  Ke7 {[%clk 0:00:15]} 45. Re1 {[%clk 0:00:04]}  Rd8 {[%clk 0:00:15]} 46. Red1 {[%clk 0:00:05]}  Rxd4 {[%clk 0:00:16]} 47. Rxd4 {[%clk 0:00:06]}  Rc6 {[%clk 0:00:16]} 48. Rh4 {[%clk 0:00:06]}  Rd6 {[%clk 0:00:16]} 49. Rh8 {[%clk 0:00:07]}  Rd8 {[%clk 0:00:16]} 50. Rh7 {[%clk 0:00:08]}  Kf7 {[%clk 0:00:16]} 51. Rh4 {[%clk 0:00:09]}  Rd2 {[%clk 0:00:16]} 52. Re4 {[%clk 0:00:09]}  a5 {[%clk 0:00:15]} 53. Kg3 {[%clk 0:00:10]}  b4 {[%clk 0:00:15]} 54. Rf4 {[%clk 0:00:09]}  a4 {[%clk 0:00:15]} 55. Rxc4 {[%clk 0:00:09]}  Nxc4 {[%clk 0:00:15]} 56. Be4 {[%clk 0:00:10]}  Ne5 {[%clk 0:00:15]} 57. Bf5 {[%clk 0:00:10]}  g6 {[%clk 0:00:15]} 58. Be4 {[%clk 0:00:09]}  f5 {[%clk 0:00:16]} 59. Bb7 {[%clk 0:00:10]}  Rxc2 {[%clk 0:00:16]} 60. Bd5+ {[%clk 0:00:10]}  Kf6 {[%clk 0:00:16]} 61. Kf4 {[%clk 0:00:10]}  Rc3 {[%clk 0:00:16]} 62. g4 {[%clk 0:00:10]}  g5# {[%clk 0:00:16]} 0-1

[Event "December 19 Early 2023"]
[Site "https://www.chess.com"]
[Date "2023.12.19"]
[Round "8"]
[White "Baches Garcia, Guillermo"]
[Black "Santos, Rafael Ventura Dos"]
[Result "0-1"]
[Board "108"]
[TimeControl "180+1"]
[WhiteFideId "2209764"]
[BlackFideId "2122227"]
[WhiteElo "2509"]
[BlackElo "2138"]
[WhiteTeam "ESP"]
[BlackTeam "BRA"]
[WhiteClock "0:00:00"]
[BlackClock "0:00:32"]

1. d4 {[%clk 0:03:00]}  Nf6 {[%clk 0:02:59]} 2. Nf3 {[%clk 0:03:01]}  g6 {[%clk 0:02:58]} 3. Bg5 {[%clk 0:03:01]}  Bg7 {[%clk 0:02:57]} 4. Nbd2 {[%clk 0:03:02]}  d5 {[%clk 0:02:55]} 5. e3 {[%clk 0:03:01]}  h6 {[%clk 0:02:53]} 6. Bh4 {[%clk 0:03:01]}  O-O {[%clk 0:02:52]} 7. Be2 {[%clk 0:03:01]}  Nbd7 {[%clk 0:02:49]} 8. O-O {[%clk 0:02:59]}  c6 {[%clk 0:02:37]} 9. h3 {[%clk 0:02:55]}  g5 {[%clk 0:02:16]} 10. Bg3 {[%clk 0:02:55]}  Nh5 {[%clk 0:02:15]} 11. Bh2 {[%clk 0:02:54]}  Nhf6 {[%clk 0:02:10]} 12. c4 {[%clk 0:02:50]}  e6 {[%clk 0:02:09]} 13. b4 {[%clk 0:02:48]}  Re8 {[%clk 0:02:02]} 14. a4 {[%clk 0:02:45]}  a5 {[%clk 0:02:01]} 15. b5 {[%clk 0:02:45]}  Bf8 {[%clk 0:02:01]} 16. Qb3 {[%clk 0:02:32]}  Bb4 {[%clk 0:01:56]} 17. Rfd1 {[%clk 0:02:29]}  cxb5 {[%clk 0:01:53]} 18. cxb5 {[%clk 0:02:25]}  Nb6 {[%clk 0:01:21]} 19. Rac1 {[%clk 0:02:20]}  Bd6 {[%clk 0:01:20]} 20. Ne5 {[%clk 0:02:18]}  Qe7 {[%clk 0:01:14]} 21. Bd3 {[%clk 0:02:11]}  Nfd7 {[%clk 0:01:12]} 22. Bb1 {[%clk 0:02:05]}  f5 {[%clk 0:01:02]} 23. Ndf3 {[%clk 0:01:51]}  Qg7 {[%clk 0:00:56]} 24. Qd3 {[%clk 0:01:46]}  Nxe5 {[%clk 0:00:51]} 25. Nxe5 {[%clk 0:01:41]}  Nd7 {[%clk 0:00:47]} 26. Qc3 {[%clk 0:01:25]}  Nxe5 {[%clk 0:00:45]} 27. Bxe5 {[%clk 0:01:19]}  Bxe5 {[%clk 0:00:45]} 28. dxe5 {[%clk 0:01:20]}  Re7 {[%clk 0:00:42]} 29. f4 {[%clk 0:01:10]}  b6 {[%clk 0:00:42]} 30. Qc6 {[%clk 0:01:04]}  Bb7 {[%clk 0:00:41]} 31. Qxb6 {[%clk 0:01:02]}  gxf4 {[%clk 0:00:40]} 32. exf4 {[%clk 0:01:01]}  Qg3 {[%clk 0:00:41]} 33. Qf2 {[%clk 0:00:59]}  Qa3 {[%clk 0:00:35]} 34. Kh2 {[%clk 0:00:39]}  Rg7 {[%clk 0:00:35]} 35. Rc5 {[%clk 0:00:23]}  d4 {[%clk 0:00:33]} 36. Rg1 {[%clk 0:00:00]}  Qxc5 {[%clk 0:00:32]} 0-1